Cogmind - Beta 13 @@@ ROGUE MODE // 2024.03.08 @ 01:30:03 Player: Hekatonkheires Result: Destroyed by P-80 Master with Gamma Rifle Performance ------------- Evolutions (7) 3500 Regions Visited (21) 4200 Robots Destroyed (178) 890 Value Destroyed (6585) 6585 Prototype IDs (31) 620 Alien Tech Used (0) 0 Bonus (5006) 5006 TOTAL SCORE: 20801 Bonus ------- High Alert Combat Kills 716 Follower Combat Kills 2719 Met Data Miner 300 Met Imprinter 300 Built Enhanced Grunts 300 A7 Reached Mainframe 300 Met R17 at Cetus 500 Friendly Fire -129 Cogmind --------- Core Integrity 0/1300 Matter 263/300 Energy 85/100 System Corruption 27% Temperature Cool (0) Movement Core (100) Ox1 Location -3/Research Parts ------- > --- POWER (2) -------- (None) > --- PROPULSION (4) --- (None) > --- UTILITY (12) ----- Improved Signal Interpreter > --- WEAPON (3) ------- Phasing Sabre > --- INVENTORY (5) ---- Centrium Wheel Coolant Network Large Matter Pod (150) Peak State ------------ > --- POWER ------------ Quantum Reactor Quantum Reactor > --- PROPULSION ------- Centrium Heavy Treads Centrium Heavy Treads > --- UTILITY ---------- Advanced Heat Sink Improved Cooling System Medium Storage Unit Improved Signal Interpreter Improved Kinecellerator Layered Medium Armor Plating Centrium Medium Armor Plating Centrium Medium Armor Plating Centrium Medium Armor Plating Centrium Medium Armor Plating > --- WEAPON ----------- Improved KE Penetrator Advanced KE Penetrator Advanced KE Penetrator > --- INVENTORY -------- Armored Huge Wheel Centrium Wheel Advanced Energy Well Large Matter Pod Hacking Drone Bay Quantum Rifle Missile Launcher Phasing Sabre [Rating: 142] Favorites ----------- Power Light Deuterium Engine Engine Light Deuterium Engine Power Core Micro Nuclear Core Reactor Quantum Reactor Propulsion Armored Huge Wheel Treads Centrium Heavy Treads Leg VSS Leg Wheel Armored Huge Wheel Hover Unit Improved Antigrav System Utility Medium Storage Unit Device Hacking Drone Bay Storage Medium Storage Unit Processor Improved Signal Interpreter Hackware Hacking Suite Protection Medium Armor Plating Weapon Gauss Rifle Energy Gun Heavy EM Pulse Gun Energy Cannon Heavy Phase Cannon Ballistic Gun Gauss Rifle Ballistic Cannon Hypervelocity Gauss Cannon Launcher Missile Launcher Slashing Weapon Phasing Sabre Build | -11 -10 -10 -9 -8 -7 -7 -7 -7 -6 -6 -6 -6 -6 -5 -5 -5 -5 -5 -5 -4 -3 ------- Run | Yrd Mat Min Mat Mat Fac Low Low Zio Pro Fac Low Low Dat Pro Fac Ext Cet Arc Hub Fac Res Slots Evolved 14 | . . . 2 2 2 . . . . 2 . . . . 2 . . . . 2 2 Power 1 | . . . . . . . . . . 1 . . . . . . . . . . . Propulsion 2 | . . . . 2 . . . . . . . . . . . . . . . . . Utility 10 | . . . 2 . 2 . . . . . . . . . 2 . . . . 2 2 Weapon 1 | . . . . . . . . . . 1 . . . . . . . . . . . Parts Attached 210 | 8 26 8 12 12 6 3 3 8 14 18 4 . 4 3 20 11 21 2 4 7 16 Power 23 | 2 2 1 1 1 . . . . 1 4 2 . . . 2 1 4 . . . 2 Engine 12 | 2 2 1 1 1 . . . . . . 1 . . . 2 1 1 . . . . Core 6 | . . . . . . . . . 1 4 1 . . . . . . . . . . Reactor 5 | . . . . . . . . . . . . . . . . . 3 . . . 2 Propulsion 45 | 2 9 . 3 3 3 . . 2 6 8 . . . . . 1 4 . . 2 2 Treads 2 | . . . . . . . . . . . . . . . . . 2 . . . . Leg 32 | 2 9 . 3 3 3 . . . 6 6 . . . . . . . . . . . Wheel 10 | . . . . . . . . 2 . 2 . . . . . 1 2 . . 2 1 Hover 1 | . . . . . . . . . . . . . . . . . . . . . 1 Flight . | . . . . . . . . . . . . . . . . . . . . . . Utility 63 | 1 11 5 4 2 2 1 1 . 2 2 2 . . . 7 2 7 1 4 4 5 Device 26 | . 2 2 1 . . . 1 . . 2 2 . . . 4 2 2 . 4 1 3 Storage 7 | 1 4 . . . . . . . . . . . . . . . 1 . . . 1 Processor 2 | . . . . 1 . . . . . . . . . . 1 . . . . . . Hackware 1 | . . . . . . . . . . . . . . . . . . . . . 1 Protection 27 | . 5 3 3 1 2 1 . . 2 . . . . . 2 . 4 1 . 3 . Artifact . | . . . . . . . . . . . . . . . . . . . . . . Weapon 79 | 3 4 2 4 6 1 2 2 6 5 4 . . 4 3 11 7 6 1 . 1 7 Energy Gun 11 | 1 2 1 1 1 . . . . . . . . . . 2 . 1 . . . 2 Energy Cannon 5 | . . . . . . . . . . . . . . . 1 3 . . . . 1 Ballistic Gun 38 | 2 2 1 2 4 1 1 1 4 2 3 . . 3 2 4 1 3 1 . . 1 Ballistic Cannon 4 | . . . . . . . . . . . . . . . 1 1 . . . . 2 Launcher 15 | . . . 1 1 . 1 1 1 2 1 . . 1 . 1 2 2 . . 1 . Special Weapon . | . . . . . . . . . . . . . . . . . . . . . . Impact Weapon . | . . . . . . . . . . . . . . . . . . . . . . Slashing Weapon 6 | . . . . . . . . 1 1 . . . . 1 2 . . . . . 1 Piercing Weapon . | . . . . . . . . . . . . . . . . . . . . . . Special Melee Weapon . | . . . . . . . . . . . . . . . . . . . . . . Unidentified Prototypes 13 | . . 1 . 2 . . . . . 2 . . . . . . 6 . . . 2 Corrupted Parts 4 | . . . . . . . . . . . . . . . . . 2 . . . 2 System Corruption 28 | . . . . . . . . . . . . . . . . . 8 . . . 20 Parts Lost 43 | . 1 . 6 . . 1 1 . 2 . . . . 1 2 . 2 . . 15 12 Power 7 | . . . 1 . . . . . 1 . . . . 1 . . . . . 2 2 Propulsion 6 | . . . 2 . . . . . . . . . . . . . 1 . . 1 2 Utility 20 | . 1 . 2 . . 1 1 . 1 . . . . . 2 . . . . 8 4 Weapon 10 | . . . 1 . . . . . . . . . . . . . 1 . . 4 4 Highest Loss Streak 15 | . 1 . 3 . . 1 1 . 2 . . . . 1 1 . 1 . . 15 6 To Critical Strikes 2 | . . . . . . . . . . . . . . . . . 1 . . 1 . Average Slot Usage (%) 88 | . 98 100 91 100 100 96 91 94 92 81 80 80 62 74 78 82 84 88 88 80 39 Engine 7 | . 13 14 10 9 7 7 7 7 5 . 5 6 6 6 10 11 1 . . . . Core 1 | . . . . . . . . . 1 11 6 6 6 1 . . . . . . . Reactor 1 | . . . . . . . . . . . . . . . . . 9 11 11 8 1 Leg 15 | . 27 28 21 36 30 30 23 22 15 12 . . . . . . . . . . . Wheel 4 | . . . . . . . . 3 9 6 13 13 13 13 11 11 5 . . . 4 Device 9 | . 1 9 10 9 7 7 5 7 6 6 13 13 13 13 15 17 14 17 17 16 8 Storage 7 | . 14 14 11 9 7 7 7 7 7 6 6 6 6 6 5 5 5 5 5 5 4 Processor 5 | . . . . 5 7 7 7 7 7 6 6 6 6 6 9 11 7 5 5 5 4 Protection 13 | . 10 4 16 12 23 19 23 23 21 9 6 6 6 6 4 5 13 17 17 21 . Ballistic Gun 15 | . 22 24 17 17 15 14 14 13 13 20 20 20 2 18 10 11 12 17 17 12 . Naked Turns . | . . . . . . . . . . . . . . . . . . . . . . Heaviest Build 112 | 14 32 26 38 40 46 48 44 44 72 83 67 67 69 69 80 82 102 94 97 112 60 Greatest Support 160 | 20 26 26 26 50 60 59 59 41 56 75 56 56 56 56 56 56 160 160 160 160 32 Greatest Overweight (x) 4 | 4 2 . 1 . . . 1 3 1 2 1 1 1 1 1 1 3 . . . 3 Average Overweight (x) . | . . . . . . . . 1 . . . 1 . 1 . 1 . . . . 1 Largest Inventory Capacity 15 | 8 15 10 10 10 10 10 10 10 10 10 10 10 10 10 10 10 10 10 10 10 10 Average Capacity 9 | 7 9 10 10 10 10 10 10 10 10 10 10 10 10 10 10 10 10 10 10 10 9 Most Carried 10 | 4 10 10 10 10 10 10 10 10 10 10 10 10 10 10 10 10 10 10 10 10 8 Average Carried 9 | 3 8 10 9 9 9 9 10 9 9 9 9 10 10 10 9 8 9 10 9 9 6 Final Capacity 10 | 8 10 10 10 10 10 10 10 10 10 10 10 10 10 10 10 10 10 10 10 10 5 Final Carried 10 | 4 10 10 9 10 10 10 10 10 10 10 10 10 10 10 8 10 10 10 10 9 4 Class Distribution -------------------- 59% | Mutant 15% | Tank 8% | Scavenger-Tank 4% | Gunner 3% | Scavenger-Mutant 3% | Commander-Tank Dominant Class ---------------- Mutant | -10/Materials Mutant | -10/Mines Mutant | -9/Materials Mutant | -8/Materials Mutant | -7/Factory Mutant | -7/Lower Caves Mutant | -7/Lower Caves Mutant | -7/Zion Mutant | -6/Proximity Caves Tank | -6/Factory Tank | -6/Lower Caves Tank | -6/Lower Caves Mutant | -6/Data Miner Tank | -5/Proximity Caves Mutant | -5/Factory Gunner | -5/Extension Scavenger-Tank | -5/Cetus Scavenger-Tank | -5/Archives Scavenger-Tank | -5/Hub_04(d) Scavenger-Tank | -4/Factory Mutant | -3/Research Resources | -11 -10 -10 -9 -8 -7 -7 -7 -7 -6 -6 -6 -6 -6 -5 -5 -5 -5 -5 -5 -4 -3 ----------- Run | Yrd Mat Min Mat Mat Fac Low Low Zio Pro Fac Low Low Dat Pro Fac Ext Cet Arc Hub Fac Res Matter Collected 6553 | 328 471 168 409 485 271 57 408 83 555 274 409 155 . 436 488 579 524 . 92 12 349 Remotely . | . . . . . . . . . . . . . . . . . . . . . . Salvage Created 8060 | 103 760 194 582 575 319 184 594 . 549 519 . 178 . 780 911 808 441 . . 203 360 Parts 390 | 5 37 8 48 29 18 8 12 . 25 28 . 8 . 32 51 25 26 . . 9 21 Haulers Intercepted 9 | . 2 . . 1 3 . . . . . . . . . 2 1 . . . . . Recyclers Shooed 8 | . 1 1 1 . . . . . . . . . . . 1 . . . . . 4 Parts Field Recycled . | . . . . . . . . . . . . . . . . . . . . . . Retrieved Matter . | . . . . . . . . . . . . . . . . . . . . . . Parts Self-Destructed 96 | . . . . . . 7 10 . 42 . . 8 . 29 . . . . . . . Prevented 7 | . . . . . . . 6 . 1 . . . . . . . . . . . . Kills | -11 -10 -10 -9 -8 -7 -7 -7 -7 -6 -6 -6 -6 -6 -5 -5 -5 -5 -5 -5 -4 -3 ------- Run | Yrd Mat Min Mat Mat Fac Low Low Zio Pro Fac Low Low Dat Pro Fac Ext Cet Arc Hub Fac Res Combat Hostiles Destroyed 128 | . 12 4 18 9 . 6 6 . 12 3 . 3 . 15 13 8 10 . . 4 5 Melee 4 | . . . . . . . . . . . . . . . 2 . . . . . 2 Guns 82 | . 12 4 12 7 . 2 6 . 8 3 . 3 . 10 5 3 3 . . 2 2 Cannons 7 | . . . . . . . . . . . . . . . 1 2 3 . . . 1 AOE 34 | . . . 6 2 . 4 . . 4 . . . . 5 5 2 4 . . 2 . Classes Destroyed 19 | 2 5 1 1 . . 1 1 . 2 1 . . . 1 . 2 1 . . . 1 Worker 10 | . 1 . 1 . 1 . . . . 1 . . . . 3 1 . . . 1 1 Builder 6 | . . . . . . . . . . 2 . . . . 3 . . . . . 1 Tunneler 4 | 2 . . 1 . . . . . . 1 . . . . . . . . . . . Hauler 9 | . 2 . . 1 3 . . . . . . . . . 2 1 . . . . . Recycler 9 | 1 2 . . . 2 . . . . 2 . . . . . 2 . . . . . Minesweeper 1 | . . . . . . . 1 . . . . . . . . . . . . . . Operator 1 | . . . . . . 1 . . . . . . . . . . . . . . . Drone 2 | . . . . . . . . . . . . . . 2 . . . . . . . Watcher 10 | . 1 . 3 3 . . . . 2 . . . . . 1 . . . . . . Swarmer 28 | . 3 . 7 . . 2 . . . . . . . 6 4 1 4 . . . 1 Grunt 58 | . 9 2 6 6 . 4 6 . 6 . . 2 . 6 7 3 . . . 1 . Brawler 4 | . . . 1 1 . . . . 1 . . 1 . . . . . . . . . Duelist 1 | . . . . . . . . . . . . . . . . . 1 . . . . Protector 1 | . . . . . . . . . 1 . . . . . . . . . . . . Sentry 15 | . . 2 4 2 . . . . 3 1 . . . 1 . 2 . . . . . Hunter 6 | . . . . . . . . . . . . . . . . 1 2 . . 1 2 Programmer 8 | . . . . . . . . . 1 2 . . . . 2 . . . . 2 1 Heavy 1 | . . . . . . . . . . . . . . . . . . . . . 1 Behemoth 1 | . . . . . . . . . . . . . . . . 1 . . . . . Cetus Guard 3 | . . . . . . . . . . . . . . . . . 3 . . . . Best Kill Streak 7 | 2 4 2 7 3 2 6 3 . 4 3 . 2 . 5 7 3 4 . . 3 2 Combat Bots Only 7 | . 3 2 7 3 . 6 3 . 4 1 . 2 . 5 4 1 4 . . 2 2 Max Kills in Single Turn 3 | 1 2 1 3 2 1 3 1 . 2 2 . 1 . 3 2 3 2 . . 2 1 Gunslinging 1 | . . . 1 . . . . . . . . . . . . . . . . . . Exploded 3 | . . . 3 2 . 3 . . 2 . . . . 3 2 1 2 . . 1 . Melee 1 | . . . . . . . . . . . . . . . 1 . . . . . 1 Uniques/NPCs Destroyed . | . . . . . . . . . . . . . . . . . . . . . . Combat | -11 -10 -10 -9 -8 -7 -7 -7 -7 -6 -6 -6 -6 -6 -5 -5 -5 -5 -5 -5 -4 -3 -------- Run | Yrd Mat Min Mat Mat Fac Low Low Zio Pro Fac Low Low Dat Pro Fac Ext Cet Arc Hub Fac Res Hostile Shots Fired 1265 | . 58 22 94 25 . 19 49 . 157 43 . 10 . 79 67 27 80 2 . 328 205 Missed 404 | . 16 5 23 3 . 5 19 . 69 13 . 2 . 20 19 9 25 . . 104 72 Damage Taken 13958 | . 487 254 764 344 . 233 356 . 631 374 . 122 . 851 797 384 1326 72 . 4077 2886 Core 2201 | . 65 28 104 13 . . 25 . 55 22 . . . 43 27 9 85 . . 407 1318 Absorbed by Shields 838 | . . . . . . . 102 . 228 72 . 32 . 236 32 136 . . . . . Redirected to Shielding 4 | . . 4 . . . . . . . . . . . . . . . . . . . Ignored by Resistances 248 | . . . . . . . 56 . 59 . . . . . 110 . . 23 . . . Regen/Repaired (Parts) 589 | . . . . . . . . 589 . . . . . . . . . . . . . Core Remaining (%) 83 | 100 . 62 74 97 . . . . 88 . . . . 92 . . . . 87 64 . Volleys Fired 476 | 8 56 13 57 38 9 4 38 . 47 26 . 7 . 31 47 27 30 2 2 10 24 Largest 3 | 2 2 2 2 2 2 2 2 . 2 3 . 3 . 3 3 3 3 3 3 3 3 Hottest 268 | 40 90 43 79 79 56 56 56 . 56 84 . 84 . 84 159 156 158 103 103 103 268 Shots Fired 1011 | 16 112 26 108 76 18 6 71 . 85 75 . 21 . 77 93 75 79 9 6 18 40 Gun 902 | 16 112 26 103 76 18 4 67 . 77 75 . 21 . 72 77 48 50 9 6 12 33 Cannon 68 | . . . . . . . . . . . . . . . 13 24 24 . . . 7 Launcher 41 | . . . 5 . . 2 4 . 8 . . . . 5 3 3 5 . . 6 . Special . | . . . . . . . . . . . . . . . . . . . . . . Kinetic 845 | 16 88 26 98 74 18 4 67 . 77 75 . 21 . 72 77 48 50 9 6 12 7 Thermal 101 | . . . 5 2 . . . . . . . . . . 13 24 24 . . . 33 Explosive 41 | . . . 5 . . 2 4 . 8 . . . . 5 3 3 5 . . 6 . Electromagnetic 24 | . 24 . . . . . . . . . . . . . . . . . . . . Robot Hit Streak 23 | 5 9 9 14 4 2 4 23 . 7 4 . 7 . 4 20 7 11 9 3 3 8 Robot Miss Streak 6 | 1 6 1 4 4 4 1 4 . 4 6 . 2 . 4 3 3 3 3 1 2 3 Penetration Max 1 | . . . . . 1 . . . 1 . . 1 . 1 1 1 1 1 1 . . Secondary Targets 9 | . . . 4 . . 1 . . 1 . . 1 . 1 1 . . . . . . Max Gunslinging Chain 1 | . . . 1 . . 1 . . 1 . . 1 . 1 1 . . . . . . Shots Hit Robots 603 | 12 68 20 72 38 7 5 41 . 51 31 . 14 . 43 63 44 50 6 5 6 27 Core Hits 365 | 4 26 10 34 23 6 9 22 . 38 13 . 8 . 30 38 35 26 3 2 23 15 Critical Kills 9 | . . . 1 . . . . . 1 . . . . . 1 2 2 . . 1 1 Critical Parts Destroyed 18 | 1 1 . . . . . 1 . 1 . . 1 . . 3 1 6 . . . 3 Critical Strikes 30 | 1 1 . 1 . . . 1 . 2 . . 1 . . 5 3 9 . . 1 5 Meltdown 2 | . . . . . . . . . . . . . . . . 2 . . . . . Destroy 26 | 1 1 . 1 . . . 1 . 2 . . 1 . . 4 1 9 . . 1 4 Sever 2 | . . . . . . . . . . . . . . . 1 . . . . . 1 Melee Attacks 22 | . . . . . . . . 1 1 . . . . 6 9 . . . . . 5 Impact . | . . . . . . . . . . . . . . . . . . . . . . Slashing 22 | . . . . . . . . 1 1 . . . . 6 9 . . . . . 5 Piercing . | . . . . . . . . . . . . . . . . . . . . . . Sneak Attacks . | . . . . . . . . . . . . . . . . . . . . . . Combat Hostiles . | . . . . . . . . . . . . . . . . . . . . . . Follow-up Attacks . | . . . . . . . . . . . . . . . . . . . . . . Damage Inflicted 19580 | 164 970 247 1421 958 196 478 924 . 2087 823 . 284 . 1673 2541 1948 2277 226 207 1306 850 Guns 11609 | 164 970 247 1026 725 196 54 866 . 1222 823 . 284 . 709 1316 786 863 226 207 294 631 Cannons 1867 | . . . . . . . . . . . . . . . 360 630 802 . . . 75 Explosions 5226 | . . . 395 230 . 424 58 . 865 . . . . 467 637 532 612 . . 1006 . Melee 840 | . . . . . . . . . . . . . . 497 228 . . . . . 115 Ramming 38 | . . . . 3 . . . . . . . . . . . . . . . 6 29 Kinetic 10766 | 164 753 247 968 710 196 54 866 . 1222 823 . 284 . 709 1356 786 863 226 207 294 38 Thermal 2875 | . . . 58 245 . . . . . . . . . . 417 630 802 . . 55 668 Explosive 4766 | . . . 395 . . 424 58 . 865 . . . . 467 504 532 612 . . 909 . Electromagnetic 295 | . 217 . . . . . . . . . . . . . 36 . . . . 42 . Impact . | . . . . . . . . . . . . . . . . . . . . . . Slashing 840 | . . . . . . . . . . . . . . 497 228 . . . . . 115 Piercing . | . . . . . . . . . . . . . . . . . . . . . . Highest Corruption 27 | . . . . . . . 5 5 1 4 4 4 4 4 2 4 13 13 13 . 27 Average Corruption 5 | . . . . . . . 5 5 1 2 4 4 4 4 1 2 12 13 13 . 11 Corruption Purged . | . . . . . . . . . . . . . . . . . . . . . . Corruption Blocked . | . . . . . . . . . . . . . . . . . . . . . . Effects 127 | . . . . . . . 16 4 8 2 12 7 1 8 1 11 23 15 6 . 13 Message Errors 23 | . . . . . . . 2 1 3 . 2 2 . 1 . 2 6 2 . . 2 Matter Fused 46 | . . . . . . . 7 2 2 . 5 4 . 3 1 3 7 5 3 . 4 Heat Flow Errors 7 | . . . . . . . 1 . . . 2 1 . . . 1 . . 1 . 1 Energy Discharges 9 | . . . . . . . 1 1 . . . . 1 3 . . 2 1 . . . Data Loss (minor) 16 | . . . . . . . 1 . 1 . 1 . . . . 3 4 2 2 . 2 Data Loss (major) 8 | . . . . . . . 1 . 1 . 1 . . . . 2 1 2 . . . Misfires 5 | . . . . . . . 1 . . 1 . . . . . . . 3 . . . Alerts 6 | . . . . . . . . . 1 . 1 . . . . . 3 . . . 1 Misdirections 1 | . . . . . . . . . . . . . . . . . . . . . 1 Weapon Failures 6 | . . . . . . . 2 . . 1 . . . 1 . . . . . . 2 Overload Shots . | . . . . . . . . . . . . . . . . . . . . . . Overflow Damage 459 | . . . 31 8 . 30 . . 8 . . . . 269 52 40 21 . . . . Projectiles 11 | . . . . . . . . . . . . . . . 4 6 1 . . . . Explosions 179 | . . . 31 8 . 30 . . 8 . . . . . 48 34 20 . . . . Melee 269 | . . . . . . . . . . . . . . 269 . . . . . . . Knockbacks 4 | . . . . . . . . . . . . . . . 3 . . . . . 1 Impact 1 | . . . . . . . . . . . . . . . . . . . . . 1 Kinetic 2 | . . . . . . . . . . . . . . . 2 . . . . . . Secondary 1 | . . . . . . . . . . . . . . . 1 . . . . . . Self-Inflicted Damage 55 | . . . . . . 18 23 . . . . . . . . . . . . . 14 Shots 2 | . . . . . . 1 1 . . . . . . . . . . . . . . Rammed 4 | . . . . . . . . . . . . . . . . . . . . 1 3 Targets Rammed 5 | . . . . 1 . . . . . . . . . . . . . . . 1 3 Kicked 1 | . . . . 1 . . . . . . . . . . . . . . . . . Crushed . | . . . . . . . . . . . . . . . . . . . . . . Highest Temperature 382 | . 234 36 72 72 12 11 126 . 71 309 220 237 . 274 361 198 12 . 130 19 382 Average Temperature 79 | . 68 14 16 27 4 5 15 . 15 122 101 96 . 94 106 107 6 . 74 7 100 Received Heat Transfer 2642 | . 222 129 228 225 . 36 174 . 217 12 . 56 . 205 236 163 45 9 . 484 201 Effects 14 | . . . . . . . . . . 5 . . . 1 8 . . . . . . Shutdowns 1 | . . . . . . . . . . . . . . . 1 . . . . . . Energy Bleed 2 | . . . . . . . . . . . . . . 1 1 . . . . . . Interference 10 | . . . . . . . . . . 5 . . . . 5 . . . . . . Short Circuit 1 | . . . . . . . . . . . . . . . 1 . . . . . . Siege Activations . | . . . . . . . . . . . . . . . . . . . . . . Robots Corrupted . | . . . . . . . . . . . . . . . . . . . . . . Combat Hostiles . | . . . . . . . . . . . . . . . . . . . . . . Parts Fried 1 | . . . . . . . . . . . . . . . . . 1 . . . . Impact Corruptions . | . . . . . . . . . . . . . . . . . . . . . . Robots Melted 2 | . . . . . . . . . . . . . . . . 2 . . . . . Combat Hostiles 1 | . . . . . . . . . . . . . . . . 1 . . . . . Parts Melted 6 | . . . 1 1 . . . . . . . . . . . 4 . . . . . Heat Transferred 3260 | . . . 148 187 . . . . . . . . . . 507 666 851 . . 50 851 Parts Sabotaged . | . . . . . . . . . . . . . . . . . . . . . . Parts Stolen 1 | . . . . . . . 1 . . . . . . . . . . . . . . Parts Stripped . | . . . . . . . . . . . . . . . . . . . . . . Power Chain Reactions . | . . . . . . . . . . . . . . . . . . . . . . Alert | -11 -10 -10 -9 -8 -7 -7 -7 -7 -6 -6 -6 -6 -6 -5 -5 -5 -5 -5 -5 -4 -3 ------- Run | Yrd Mat Min Mat Mat Fac Low Low Zio Pro Fac Low Low Dat Pro Fac Ext Cet Arc Hub Fac Res Peak Influence 1471 | 15 206 93 453 427 93 . . . . 194 . . . . 675 1460 1471 774 697 451 285 Initial 722 | . 9 43 21 70 54 . . . . . . . . . 339 325 722 588 270 340 220 Average 301 | 6 92 57 201 175 44 . . . . 65 . . . . 418 873 1098 756 384 368 199 Maximum Alert Level 4 | . 1 . 2 2 . . . . . . . . . . 2 4 4 3 2 2 1 Low Security (%) 55 | 100 99 100 65 66 100 . . . . 100 . . . . . . . . . . 19 Level 1 21 | . . . 23 28 . . . . . . . . . . 57 14 . . 66 67 80 Level 2 9 | . . . 10 4 . . . . . . . . . . 42 19 . 10 33 32 . Level 3 9 | . . . . . . . . . . . . . . . . 37 67 89 . . . Level 4 4 | . . . . . . . . . . . . . . . . 28 31 . . . . Level 5 . | . . . . . . . . . . . . . . . . . . . . . . High Security . | . . . . . . . . . . . . . . . . . . . . . . Max Security . | . . . . . . . . . . . . . . . . . . . . . . Squads Dispatched 32 | . 2 . 3 1 1 . . . 2 2 . . . . 6 3 . . 2 5 5 Investigation 8 | . 1 . 1 1 . . . . 2 . . . . . 1 . . . . 1 1 Extermination 5 | . . . . . . . . . . 2 . . . . 1 . . . . 1 1 Reinforcement 14 | . 1 . 2 . 1 . . . . . . . . . 3 2 . . 2 1 2 Assault 4 | . . . . . . . . . . . . . . . 1 1 . . . 1 1 Garrison 1 | . . . . . . . . . . . . . . . . . . . . 1 . Intercept . | . . . . . . . . . . . . . . . . . . . . . . Searches Triggered . | . . . . . . . . . . . . . . . . . . . . . . Construction Impeded 2 | . . . . . . . . . . . . . . . 1 . . . . 1 . Haulers Reinforced 2 | . . . . . . . . . . . . . . . 2 . . . . . . Active Scanning Responses . | . . . . . . . . . . . . . . . . . . . . . . Cargo Convoy Interrupts . | . . . . . . . . . . . . . . . . . . . . . . Stealth | -11 -10 -10 -9 -8 -7 -7 -7 -7 -6 -6 -6 -6 -6 -5 -5 -5 -5 -5 -5 -4 -3 --------- Run | Yrd Mat Min Mat Mat Fac Low Low Zio Pro Fac Low Low Dat Pro Fac Ext Cet Arc Hub Fac Res Distress Signals 21 | . 1 . 2 3 . . . . 2 1 . . . . 4 2 2 . 1 . 3 Communications Jammed . | . . . . . . . . . . . . . . . . . . . . . . Distress Signals . | . . . . . . . . . . . . . . . . . . . . . . Times Spotted 273 | . 22 4 27 17 1 7 13 . 17 12 . 6 . 16 25 34 24 8 5 17 18 Peak Tracking Total 13 | . 3 2 6 4 1 7 4 . 5 2 . 4 . 5 6 5 5 2 5 13 8 Tactical Retreats 17 | . 1 . 1 2 . . 2 . 1 . . 2 . 1 3 2 . . . 1 1 Traps | -11 -10 -10 -9 -8 -7 -7 -7 -7 -6 -6 -6 -6 -6 -5 -5 -5 -5 -5 -5 -4 -3 ------- Run | Yrd Mat Min Mat Mat Fac Low Low Zio Pro Fac Low Low Dat Pro Fac Ext Cet Arc Hub Fac Res Traps Triggered 13 | . 2 . . . . . . . . 2 . . . . 2 2 . . . 3 2 Indirectly . | . . . . . . . . . . . . . . . . . . . . . . Trap Hack Attempts . | . . . . . . . . . . . . . . . . . . . . . . Triggered . | . . . . . . . . . . . . . . . . . . . . . . Disarmed 6 | . 6 . . . . . . . . . . . . . . . . . . . . Reprogrammed . | . . . . . . . . . . . . . . . . . . . . . . Reused . | . . . . . . . . . . . . . . . . . . . . . . Traps Extracted . | . . . . . . . . . . . . . . . . . . . . . . Installed . | . . . . . . . . . . . . . . . . . . . . . . Triggered 2 | . . . . . . . 2 . . . . . . . . . . . . . . Machines | -11 -10 -10 -9 -8 -7 -7 -7 -7 -6 -6 -6 -6 -6 -5 -5 -5 -5 -5 -5 -4 -3 ---------- Run | Yrd Mat Min Mat Mat Fac Low Low Zio Pro Fac Low Low Dat Pro Fac Ext Cet Arc Hub Fac Res Machines Disabled 38 | . . . 2 6 . 1 . . . 6 . . . . 5 4 . 3 2 9 . Max in Single Turn 5 | . . . 2 2 . 1 . . . 1 . . . . 1 1 . 1 1 5 . Garrison Access 2 | . . . . . 1 . . . . . . . . . . . . . . . 1 Machines Repaired . | . . . . . . . . . . . . . . . . . . . . . . Machines Dismantled . | . . . . . . . . . . . . . . . . . . . . . . Machines Sabotaged . | . . . . . . . . . . . . . . . . . . . . . . Overloaded Fab Kills . | . . . . . . . . . . . . . . . . . . . . . . Hacking | -11 -10 -10 -9 -8 -7 -7 -7 -7 -6 -6 -6 -6 -6 -5 -5 -5 -5 -5 -5 -4 -3 --------- Run | Yrd Mat Min Mat Mat Fac Low Low Zio Pro Fac Low Low Dat Pro Fac Ext Cet Arc Hub Fac Res Machines Accessed 55 | . 7 . 5 8 8 1 . . 2 4 . . 4 . 8 4 2 1 . 1 . Terminals 33 | . 5 . 4 7 3 1 . . . . . . . . 7 4 2 . . . . Fabricators 6 | . . . . . 2 . . . 1 2 . . . . 1 . . . . . . Repair Stations 1 | . . . . . 1 . . . . . . . . . . . . . . . . Recycling Units 7 | . 2 . 1 . 1 . . . 1 1 . . . . . . . . . 1 . Scanalyzers 1 | . . . . . . . . . . 1 . . . . . . . . . . . Garrison Access 2 | . . . . 1 1 . . . . . . . . . . . . . . . . Total Hacks 180 | . 21 . 14 27 17 3 . . 4 4 . . 30 . 17 13 4 25 . 1 . Successful 113 | . 12 . 5 13 8 3 . . 2 1 . . 30 . 6 7 1 25 . . . Failed 65 | . 8 . 9 14 9 . . . 2 3 . . . . 10 6 3 . . 1 . Catastrophic 15 | . . . 3 2 3 . . . 1 1 . . . . . 3 2 . . . . Database Lockouts 2 | . 1 . . . . . . . . . . . . . 1 . . . . . . Manual 40 | . 6 . 5 8 5 . . . 2 1 . . . . 7 4 2 . . . . Terminals 95 | . 15 . 12 26 6 3 . . . . . . . . 16 13 4 . . . . Fabricators 7 | . . . . . 3 . . . 1 2 . . . . 1 . . . . . . Repair Stations 4 | . . . . . 4 . . . . . . . . . . . . . . . . Recycling Units 14 | . 6 . 2 . 1 . . . 3 1 . . . . . . . . . 1 . Scanalyzers 1 | . . . . . . . . . . 1 . . . . . . . . . . . Garrison Access 4 | . . . . 1 3 . . . . . . . . . . . . . . . . Terminal Hacks 89 | . 6 . 5 8 2 3 . . . . . . 30 . 5 4 1 25 . . . Record 43 | . . . . . . 3 . . . . . . 11 . 2 1 1 25 . . . Part Schematic 11 | . . . . . . . . . . . . . 11 . . . . . . . . Robot Schematic 6 | . . . . . 1 . . . . . . . 5 . . . . . . . . Robot Analysis 1 | . 1 . . . . . . . . . . . . . . . . . . . . Prototype ID Bank 6 | . 1 . . 2 . . . . . . . . 3 . . . . . . . . Level Access Points 1 | . . . 1 . . . . . . . . . . . . . . . . . . Branch Access Points 1 | . . . . 1 . . . . . . . . . . . . . . . . . Emergency Access Points 2 | . . . . . 1 . . . . . . . . . 1 . . . . . . Alert Level 1 | . . . 1 . . . . . . . . . . . . . . . . . . Unreport Threat 2 | . . . 1 1 . . . . . . . . . . . . . . . . . Locate Traps 9 | . 2 . 2 2 . . . . . . . . . . 2 1 . . . . . Disarm Traps 1 | . 1 . . . . . . . . . . . . . . . . . . . . Transport Status 1 | . . . . . . . . . . . . . . . . 1 . . . . . Hauler Manifests 1 | . . . . 1 . . . . . . . . . . . . . . . . . Zone Layout 3 | . 1 . . 1 . . . . . . . . . . . 1 . . . . . Fabricator Hacks . | . . . . . . . . . . . . . . . . . . . . . . Repair Station Hacks 1 | . . . . . 1 . . . . . . . . . . . . . . . . Scan Component 1 | . . . . . 1 . . . . . . . . . . . . . . . . Recycling Unit Hacks 7 | . 4 . . . 1 . . . 1 1 . . . . . . . . . . . Report Inventory 5 | . 2 . . . 1 . . . 1 1 . . . . . . . . . . . Retrieve Components 2 | . 2 . . . . . . . . . . . . . . . . . . . . Scanalyzer . | . . . . . . . . . . . . . . . . . . . . . . Garrison Access Hacks 1 | . . . . . 1 . . . . . . . . . . . . . . . . Seal Access 1 | . . . . . 1 . . . . . . . . . . . . . . . . Unauthorized Hacks 15 | . 2 . . 5 3 . . . 1 . . . . . 1 3 . . . . . Terminals 12 | . 1 . . 5 2 . . . . . . . . . 1 3 . . . . . Assimilate 2 | . . . . 2 . . . . . . . . . . . . . . . . . Botnet 6 | . . . . 2 1 . . . . . . . . . 1 2 . . . . . Operators 4 | . 1 . . 1 1 . . . . . . . . . . 1 . . . . . Fabricators 1 | . . . . . 1 . . . . . . . . . . . . . . . . Fabnet 1 | . . . . . 1 . . . . . . . . . . . . . . . . Repair Stations . | . . . . . . . . . . . . . . . . . . . . . . Recycling Units 2 | . 1 . . . . . . . 1 . . . . . . . . . . . . Tunnel 2 | . 1 . . . . . . . 1 . . . . . . . . . . . . Scanalyzers . | . . . . . . . . . . . . . . . . . . . . . . Garrison Access . | . . . . . . . . . . . . . . . . . . . . . . Data Cores Recovered . | . . . . . . . . . . . . . . . . . . . . . . Used . | . . . . . . . . . . . . . . . . . . . . . . Hacking Detections 43 | . 4 . 5 8 6 1 . . 1 3 . . . . 8 4 2 . . 1 . Full Trace Events 4 | . . . 1 2 . 1 . . . . . . . . . . . . . . . Feedback Events . | . . . . . . . . . . . . . . . . . . . . . . Feedback Blocked . | . . . . . . . . . . . . . . . . . . . . . . Robot Schematics Acquired 9 | . . . . . 1 . . 3 . . . . 5 . . . . . . . . Robots Built . | . . . . . . . . . . . . . . . . . . . . . . Authchips . | . . . . . . . . . . . . . . . . . . . . . . Time . | . . . . . . . . . . . . . . . . . . . . . . Total Robot Build Rating . | . . . . . . . . . . . . . . . . . . . . . . Part Schematics Acquired 27 | . . . . . . . . 16 . . . . 11 . . . . . . . . Parts Built . | . . . . . . . . . . . . . . . . . . . . . . Authchips . | . . . . . . . . . . . . . . . . . . . . . . Time . | . . . . . . . . . . . . . . . . . . . . . . Total Part Build Rating . | . . . . . . . . . . . . . . . . . . . . . . Parts Repaired . | . . . . . . . . . . . . . . . . . . . . . . Time . | . . . . . . . . . . . . . . . . . . . . . . Parts Recycled . | . . . . . . . . . . . . . . . . . . . . . . Recycled Matter . | . . . . . . . . . . . . . . . . . . . . . . Retrieved Matter . | . . . . . . . . . . . . . . . . . . . . . . Retrieved Components 12 | . 12 . . . . . . . . . . . . . . . . . . . . Parts Scanalyzed . | . . . . . . . . . . . . . . . . . . . . . . Part Schematics Acquired . | . . . . . . . . . . . . . . . . . . . . . . Parts Damaged . | . . . . . . . . . . . . . . . . . . . . . . Bothacking | -11 -10 -10 -9 -8 -7 -7 -7 -7 -6 -6 -6 -6 -6 -5 -5 -5 -5 -5 -5 -4 -3 ------------ Run | Yrd Mat Min Mat Mat Fac Low Low Zio Pro Fac Low Low Dat Pro Fac Ext Cet Arc Hub Fac Res Used RIF Installer . | . . . . . . . . . . . . . . . . . . . . . . Robots Hacked 3 | . . . . . . . . . 2 . . . . . . 1 . . . . . Non-combat . | . . . . . . . . . . . . . . . . . . . . . . Combat 3 | . . . . . . . . . 2 . . . . . . 1 . . . . . Robot Hacks Applied . | . . . . . . . . . . . . . . . . . . . . . . Relay Couplers Released 2 | . . . . . . . . . . . . . . . . . . . . . 2 Machine Destruction 2 | . . . . . . . . . . . . . . . . . . . . . 2 Fabnet Peak Effective % 3 | . . . . . . . . . 3 3 3 3 3 1 1 1 1 1 1 . . Autooverrided 3 | . . . . . . . . . 2 . . . . . . 1 . . . . . Robots Rewired 28 | . . . . . . . . . 11 . . . . . . 17 . . . . . Allies Hacked . | . . . . . . . . . . . . . . . . . . . . . . Hacks Repelled . | . . . . . . . . . . . . . . . . . . . . . . Allies | -11 -10 -10 -9 -8 -7 -7 -7 -7 -6 -6 -6 -6 -6 -5 -5 -5 -5 -5 -5 -4 -3 -------- Run | Yrd Mat Min Mat Mat Fac Low Low Zio Pro Fac Low Low Dat Pro Fac Ext Cet Arc Hub Fac Res Total Allies 42 | . . . . 1 . . . . 13 . . . . . . 23 5 . . . . Largest Group 16 | . . . . 1 1 1 . . 6 6 . . . . . 16 12 8 6 3 . Highest-Rated Group 613 | . . . . 10 10 10 . . 202 202 . . . . . 613 562 514 452 216 . Highest-Rated Ally 159 | . . . . 10 10 10 . . 41 41 . . . . . 159 137 96 96 96 . Total Orders 11 | . . . . . . . . . . 2 . . . . 1 . 3 . 4 1 . STAY 1 | . . . . . . . . . . . . . . . . . 1 . . . . FOLLOW 1 | . . . . . . . . . . . . . . . . . 1 . . . . RETURN 9 | . . . . . . . . . . 2 . . . . 1 . 1 . 4 1 . Ally Attacks 382 | . . . . . . . . . 6 27 . . . . . 182 78 34 45 10 . Total Damage 11368 | . . . . . . . . . . 1232 . . . . . 4879 2215 920 1462 660 . Kills 81 | . . . . . . . . . . 10 . . . . . 33 17 4 14 3 . Allies Corrupted . | . . . . . . . . . . . . . . . . . . . . . . Allies Melted . | . . . . . . . . . . . . . . . . . . . . . . Intel | -11 -10 -10 -9 -8 -7 -7 -7 -7 -6 -6 -6 -6 -6 -5 -5 -5 -5 -5 -5 -4 -3 ------- Run | Yrd Mat Min Mat Mat Fac Low Low Zio Pro Fac Low Low Dat Pro Fac Ext Cet Arc Hub Fac Res Robot Analysis Total 1 | . 1 . . . . . . . . . . . . . . . . . . . . Derelict Logs Recovered 10 | . . 2 . . . 1 1 1 1 . 1 2 . 1 . . . . . . . Drone Launches 9 | . . . . . . . . . . 2 . . . . 1 . 1 . 4 1 . Drone Recoveries 9 | . . . . . . . . . . 2 . . . . 1 . 1 . 4 1 . Exploration | -11 -10 -10 -9 -8 -7 -7 -7 -7 -6 -6 -6 -6 -6 -5 -5 -5 -5 -5 -5 -4 -3 ------------- Run | Yrd Mat Min Mat Mat Fac Low Low Zio Pro Fac Low Low Dat Pro Fac Ext Cet Arc Hub Fac Res Turns Passed 15403 | 109 1320 697 893 1130 822 411 701 1860 939 1137 519 462 104 381 952 803 609 293 193 572 496 Spaces Moved 9500 | 49 647 527 404 600 564 368 309 1243 601 636 444 376 96 214 629 441 339 177 101 348 387 Core 120 | 6 . . . . . . . . . . . . . . . . . . . . 114 Treads 742 | . . . . . . . . . . . . . . . . . 169 177 101 295 . Legs 4547 | 43 647 527 404 600 564 368 309 587 205 293 . . . . . . . . . . . Wheels 4091 | . . . . . . . . 656 396 343 444 376 96 214 629 441 170 . . 53 273 Hover . | . . . . . . . . . . . . . . . . . . . . . . Flight . | . . . . . . . . . . . . . . . . . . . . . . Fastest Speed 50 | 50 120 120 120 120 107 107 107 103 107 100 100 115 100 115 100 115 115 160 160 90 50 Average Speed 132 | 137 166 120 174 121 117 107 176 147 112 142 114 115 101 115 114 115 138 160 160 150 102 Slowest Speed 260 | 250 260 120 190 122 122 107 186 186 187 192 115 115 115 115 115 115 240 160 160 160 150 Overloaded Moves . | . . . . . . . . . . . . . . . . . . . . . . Propulsion Burnouts . | . . . . . . . . . . . . . . . . . . . . . . Robots Hopped . | . . . . . . . . . . . . . . . . . . . . . . Cave-ins Triggered . | . . . . . . . . . . . . . . . . . . . . . . Exploration Rate (%) 49 | 4 87 94 39 57 19 57 38 84 55 20 67 58 69 32 22 67 78 96 11 11 13 Regions Visited 21 Branch Regions 13 Pre-discovered Areas 5 | . 1 . . . . . . 2 1 . . . 1 . . . . . . . . Known Exits Taken 18 | . . . 1 1 1 1 1 1 1 1 1 1 1 1 1 1 1 1 1 1 . Unknown Exits Taken 3 | 1 1 1 . . . . . . . . . . . . . . . . . . . Scrap Searched 23 | . . 1 . . . 4 1 4 3 . 8 2 . . . . . . . . . Spaces Dug 23 | . . . . . . . . . . . . . . . 23 . . . . . . Terrain Destroyed 382 | . . . 64 19 . 9 35 . 51 2 . . . 48 56 30 48 . . 20 . Melee . | . . . . . . . . . . . . . . . . . . . . . . Projectile 56 | . . . . 1 . . 4 . 1 2 . . . 8 25 9 3 . . 3 . AOE 324 | . . . 64 18 . 9 31 . 50 . . . . 39 31 21 44 . . 17 . Terrain Rammed . | . . . . . . . . . . . . . . . . . . . . . . Walls Destroyed . | . . . . . . . . . . . . . . . . . . . . . . Machines Disabled . | . . . . . . . . . . . . . . . . . . . . . . Actions | -11 -10 -10 -9 -8 -7 -7 -7 -7 -6 -6 -6 -6 -6 -5 -5 -5 -5 -5 -5 -4 -3 --------- Run | Yrd Mat Min Mat Mat Fac Low Low Zio Pro Fac Low Low Dat Pro Fac Ext Cet Arc Hub Fac Res Total 11363 | 71 783 565 483 926 705 378 392 1266 776 813 453 390 102 275 752 679 415 182 127 379 451 Wait 736 | 3 18 13 5 257 118 . 39 5 34 99 . 8 . 18 28 52 8 . 19 7 5 Move 9479 | 48 646 526 403 599 563 367 308 1242 600 635 443 375 95 213 628 440 338 176 100 347 387 Hop . | . . . . . . . . . . . . . . . . . . . . . . Pick Up 70 | 3 15 . 5 7 3 2 . 4 3 3 1 . . . 6 6 4 1 1 4 2 Fast Attach 87 | 7 10 3 3 5 . 1 1 3 3 8 4 . 3 . 12 2 12 . . . 10 Attach 38 | . . . 5 2 2 . . 1 3 5 . . . . 3 2 2 . . 6 7 Detach 14 | 1 2 . . 1 . . . . 1 . . . . . . 3 2 . . 1 3 Swap 86 | 1 16 5 4 5 4 2 2 4 8 5 . . 1 3 5 7 7 2 4 1 . Drop 124 | . 20 5 1 11 6 2 . 6 8 16 5 . 3 . 14 6 12 1 1 2 5 Fire 476 | 8 56 13 57 38 9 4 38 . 47 26 . 7 . 31 47 27 30 2 2 10 24 Melee 22 | . . . . . . . . 1 1 . . . . 6 9 . . . . . 5 Ram 3 | . . . . . . . . . . . . . . . . . . . . . 3 Kick 1 | . . . . 1 . . . . . . . . . . . . . . . . . Crush 1 | . . . . . . . . . . . . . . . . . . . . 1 . Escape Stasis 24 | . . . . . . . . . . 16 . . . . . 8 . . . . . Rewire 202 | . . . . . . . 4 . 68 . . . . 4 . 126 . . . . . Trap . | . . . . . . . . . . . . . . . . . . . . . . Miscellaneous . | . . . . . . . . . . . . . . . . . . . . . . Route ------- -11/Scrapyard -10/Materials (discovered 5 exits: *Mat x3 / [*Min x2]) -10/Mines (discovered 2 exits: *Mat x2) -9/Materials (discovered 4 exits: *Mat x3 / [*Sto]) -8/Materials -7/Factory (discovered 2 exits: *Fac / *Low) -7/Lower Caves -7/Lower Caves -7/Zion -6/Proximity Caves -6/Factory (discovered 2 exits: *Fac / *Low) -6/Lower Caves -6/Lower Caves (discovered 2 exits: *Fac / *Dat) -6/Data Miner -5/Proximity Caves -5/Factory (discovered 3 exits: *Upp x2 / *Ext) -5/Extension (discovered 2 exits: *Fac / *Cet) -5/Cetus (discovered 2 exits: *Fac / *Arc) -5/Archives (discovered 3 exits: *Fac / *Hub x2) -5/Hub_04(d) (discovered 4 exits: *Fac x4) -4/Factory (discovered 3 exits: *Res / Upp x2) -3/Research History --------- Turn | Location | Event 42 | -11/Scrapyard | Discovered new exit (range 15) 110 | -11/Scrapyard | Entered Materials 119 | -10/Materials | Discovered new exit (range 8) 308 | -10/Materials | Build established: Mutant 309 | -10/Materials | Discovered new exit (range 16) 564 | -10/Materials | Discovered new exit (range 6) 915 | -10/Materials | Central database locked down 1082 | -10/Materials | Discovered new exit (range 16) 1286 | -10/Materials | Discovered new exit (range 4) 1430 | -10/Materials | Entered Mines 1442 | -10/Mines | Found a hidden stash of uninstalled traps 1522 | -10/Mines | Found a damaged Exp. Sensor Array with a note attached 1525 | -10/Mines | Found Prototype Device 1525 | -10/Mines | Identified Exp. Sensor Array 1601 | -10/Mines | Discovered new exit (range 8) 1609 | -10/Mines | Learned Materials security intel 1701 | -10/Mines | Discovered new exit (range 8) 2127 | -10/Mines | Entered Materials 2127 | -9/Materials | Evolved 2 slots: Utility x2 2488 | -9/Materials | Build established: Scavenger-Mutant 2663 | -9/Materials | Destroyed 7 combat bots 2673 | -9/Materials | Identified exit to Materials 2789 | -9/Materials | Lost 3 parts (2n1w) 2906 | -9/Materials | Build established: Mutant 2946 | -9/Materials | Discovered new exit (range 13) 3020 | -9/Materials | Entered another Materials area 3020 | -8/Materials | Evolved 2 slots: Propulsion x2 4132 | -8/Materials | Discovered new exit (range 15) 4149 | -8/Materials | Identified exit to Factory 4150 | -8/Materials | Entered Factory 4150 | -7/Factory | Accompanied by 1 ally 4150 | -7/Factory | Evolved 2 slots: Utility x2 4584 | -7/Factory | Discovered new exit (range 16) 4633 | -7/Factory | Identified exit to Factory 4806 | -7/Factory | Discovered new exit (range 15) 4825 | -7/Factory | Identified exit to Lower Caves 4972 | -7/Factory | Entered Lower Caves 4972 | -7/Lower Caves | Accompanied by 1 ally 5053 | -7/Lower Caves | Encountered a Warlord checkpoint 5167 | -7/Lower Caves | Attracted the attention of an 0b10 base 5196 | -7/Lower Caves | Learned location of 1 exit from Proximity Caves 5234 | -7/Lower Caves | Discovered new exit (range 13) 5249 | -7/Lower Caves | Identified exit to Lower Caves 5383 | -7/Lower Caves | Entered another Lower Caves area 5771 | -7/Lower Caves | Identified exit to Zion 6084 | -7/Lower Caves | Entered Zion 6229 | -7/Zion | Discovered new exit (range 15) 6280 | -7/Zion | System corruption cleaned by Quarantine Array 6799 | -7/Zion | Learned location of Warlord (-4) 6977 | -7/Zion | Given the Hacking Drone Bay 6981 | -7/Zion | Found Prototype Device 7025 | -7/Zion | Given A8's code to call for help 7417 | -7/Zion | Visited the Megawrench Repair Shop 7423 | -7/Zion | Megawrench repaired 11 parts 7477 | -7/Zion | Learned Factory emergency access door positions 7943 | -7/Zion | Identified exit to Proximity Caves 7944 | -7/Zion | Entered Proximity Caves 7971 | -6/Proximity Caves | Learned 4 Factory zone layouts 8285 | -6/Proximity Caves | Snuck into a huge 0b10 base via the rear entrance 8431 | -6/Proximity Caves | Derelicts attacked a huge 0b10 base 8540 | -6/Proximity Caves | Lost 8 allies 8571 | -6/Proximity Caves | Spotted B-75 Beast 8644 | -6/Proximity Caves | Lost 3 allies 8883 | -6/Proximity Caves | Entered Factory 8883 | -6/Factory | Accompanied by 6 allies 8883 | -6/Factory | Evolved 2 slots: Power x1, Weapon x1 9181 | -6/Factory | Build established: Commander-Tank 9248 | -6/Factory | Lost 3 allies 9456 | -6/Factory | Identified Hacking Drone Bay 9522 | -6/Factory | Build established: Tank 9543 | -6/Factory | Discovered new exit (range 6) 9549 | -6/Factory | Identified exit to Factory 9967 | -6/Factory | Discovered new exit (range 15) 9987 | -6/Factory | Identified exit to Lower Caves 10020 | -6/Factory | Entered Lower Caves 10300 | -6/Lower Caves | Encountered a Warlord checkpoint 10344 | -6/Lower Caves | Discovered new exit (range 14) 10355 | -6/Lower Caves | Identified exit to Lower Caves 10539 | -6/Lower Caves | Entered another Lower Caves area 10541 | -6/Lower Caves | Discovered exit to Factory (range 14) 10546 | -6/Lower Caves | Spotted B-75 Beast 10557 | -6/Lower Caves | Encountered a Warlord checkpoint 10660 | -6/Lower Caves | Learned Factory interactive machine intel 10878 | -6/Lower Caves | Discovered new exit (range 13) 10892 | -6/Lower Caves | Identified exit to Data Miner 11001 | -6/Lower Caves | Entered Data Miner 11003 | -6/Data Miner | Discovered new exit (range 6) 11022 | -6/Data Miner | Met Data Miner 11041 | -6/Data Miner | Learned location of Section 7 (-2) 11041 | -6/Data Miner | Acquired the access code to Warlord's prototype stash 11057 | -6/Data Miner | Received God Mode back door access code from Data Miner 11103 | -6/Data Miner | Identified exit to Proximity Caves 11105 | -6/Data Miner | Entered Proximity Caves 11108 | -5/Proximity Caves | Spotter reported a threat 11413 | -5/Proximity Caves | Learned Factory terminal intel 11437 | -5/Proximity Caves | Attracted the attention of an 0b10 checkpoint 11462 | -5/Proximity Caves | Discovered exit to Factory (range 12) 11486 | -5/Proximity Caves | Entered Factory 11486 | -5/Factory | Evolved 2 slots: Utility x2 11486 | -5/Factory | Discovered new exit (range 14) 11487 | -5/Factory | Identified exit to Upper Caves 11487 | -5/Factory | Identified exit to Extension 11488 | -5/Factory | Loaded intel: 54 interactive machine locations 11489 | -5/Factory | Loaded intel: 28 terminal locations 11506 | -5/Factory | Central database locked down 11720 | -5/Factory | Found Hvy. Insulated Plating 12061 | -5/Factory | Build established: Mutant 12386 | -5/Factory | First assault squad dispatched 12438 | -5/Factory | Entered Extension 12494 | -5/Extension | Rescued a captive Derelict 12502 | -5/Extension | Rescued a captive Derelict 12503 | -5/Extension | Rescued a captive Derelict 12607 | -5/Extension | Rescued A7 12738 | -5/Extension | First assault squad dispatched 12750 | -5/Extension | Spotted B-75 Beast 12756 | -5/Extension | Spotted B-75 Beast 12771 | -5/Extension | Build established: Gunner 12777 | -5/Extension | Lost 3 allies 12781 | -5/Extension | Allies destroyed B-75 Beast 12784 | -5/Extension | Destroyed B-75 Beast 12872 | -5/Extension | Rescued a captive Derelict 13089 | -5/Extension | Local machine network offline 13185 | -5/Extension | Lost 6 allies 13201 | -5/Extension | Discovered new exit (range 10) 13203 | -5/Extension | Discovered new exit (range 6) 13204 | -5/Extension | Build established: Commander-Gunner 13208 | -5/Extension | Identified exit to Cetus 13241 | -5/Extension | Entered Cetus 13241 | -5/Cetus | Accompanied by 12 allies (A7) 13246 | -5/Cetus | Acquired a Cetus Manufacturing Module code from A7 13257 | -5/Cetus | Spotted Cetus Guard 13257 | -5/Cetus | Spotted Cetus Guard 13259 | -5/Cetus | Spotted Cetus Guard 13261 | -5/Cetus | Spotted Cetus Guard 13274 | -5/Cetus | Allies destroyed Cetus Guard 13274 | -5/Cetus | Allies destroyed Cetus Guard 13274 | -5/Cetus | Allies destroyed Cetus Guard 13275 | -5/Cetus | System corruption reached 10% 13278 | -5/Cetus | Allies destroyed Cetus Guard 13352 | -5/Cetus | Lost 4 allies 13397 | -5/Cetus | Started Cetus Manufacturing Module 13408 | -5/Cetus | Escorted A7 to Cetus Mainframe 13422 | -5/Cetus | Manufactured an Enhanced Grunt 13422 | -5/Cetus | Discovered new exit (range 16) 13447 | -5/Cetus | Manufactured an Enhanced Grunt 13459 | -5/Cetus | Spotted Cetus Guard 13459 | -5/Cetus | Spotted Cetus Guard 13465 | -5/Cetus | Spotted Cetus Guard 13467 | -5/Cetus | Allies destroyed Cetus Guard 13467 | -5/Cetus | Spotted Cetus Guard 13472 | -5/Cetus | Manufactured an Enhanced Grunt 13473 | -5/Cetus | Destroyed Cetus Guard 13486 | -5/Cetus | Destroyed Cetus Guard 13497 | -5/Cetus | Manufactured an Enhanced Grunt 13505 | -5/Cetus | Destroyed Cetus Guard 13513 | -5/Cetus | Lost 3 allies 13522 | -5/Cetus | Manufactured an Enhanced Grunt 13522 | -5/Cetus | Extracted ID and sensor layout for unrecognized location from A7's data core 13525 | -5/Cetus | Found Prototype Device 13530 | -5/Cetus | Identified Exp. Thermal Shield 13538 | -5/Cetus | Discovered new exit (range 15) 13545 | -5/Cetus | Met Revision 17 13594 | -5/Cetus | Identified exit to Factory 13660 | -5/Cetus | Identified exit to Archives 13807 | -5/Cetus | Build established: Scavenger-Tank 13850 | -5/Cetus | Entered Archives 13850 | -5/Archives | Accompanied by 8 allies 13886 | -5/Archives | Unable to access archive contents 13902 | -5/Archives | Unable to access archive contents 13918 | -5/Archives | Unable to access archive contents 13934 | -5/Archives | Unable to access archive contents 13937 | -5/Archives | Discovered new exit (range 15) 13958 | -5/Archives | Identified exit to Hub_04(d) 13993 | -5/Archives | Discovered exit to Hub_04(d) (range 16) 14049 | -5/Archives | Discovered exit to Factory (range 15) 14143 | -5/Archives | Entered Hub_04(d) 14143 | -5/Hub_04(d) | Accompanied by 6 allies 14184 | -5/Hub_04(d) | Discovered exit to Factory (range 4) 14317 | -5/Hub_04(d) | Lost 3 allies 14336 | -5/Hub_04(d) | Entered Factory 14336 | -4/Factory | Accompanied by 3 allies 14336 | -4/Factory | Evolved 2 slots: Utility x2 14337 | -4/Factory | Identified exit to Upper Caves 14506 | -4/Factory | Identified exit to DSF 14530 | -4/Factory | Spotted B-86 Titan 14779 | -4/Factory | Lost 3 allies 14817 | -4/Factory | Garrison activated, responded to threat 14866 | -4/Factory | First assault squad dispatched 14889 | -4/Factory | Discovered new exit (range 15) 14903 | -4/Factory | Identified exit to Research 14908 | -4/Factory | Entered Research 14908 | -3/Research | Evolved 2 slots: Utility x2 14937 | -3/Research | Lost 15 parts (2p1n8u4w) 15066 | -3/Research | Spotted B-86 Titan 15269 | -3/Research | System corruption reached 10% 15363 | -3/Research | Core integrity fell below 50% 15365 | -3/Research | Lost 6 parts (1p2n1u2w) 15389 | -3/Research | Core integrity fell below 20% 15404 | -3/Research | Destroyed by P-80 Master with Gamma Rifle Last Messages --------------- 15334_ Hacking Suite destroyed. 15346_ P>WYNRU#8/H>JOM39KL0L 15351_ Penetrated by Slug. 15354_ Slug penetrates Wall. 15356_ Penetrated by Slug. 15356_ Slug penetrates Wall. 15359_ Penetrated by Slug. 15363_ System corrupted: Component data lost. 15363_ Penetrated by Slug. 15379_ Adv. Weapon Cycler destroyed. 15384_ Triggered Alarm Trap. 15384_ An alarm sounds. 15384_ ALERT: Alarm triggered, dispatching investigation squad. 15389_ ALERT: Cargo convoy en route, clear transfer corridor. 15394_ S-43 Plague destroyed. 15395_ System corrupted: Matter fused (-10). 15397_ P-80 Master Imp. Antigrav System severed. 15402_ P-80 Master destroyed. Map ----- +----------------------------------------------------+ | ???????????????????????????# | | ???????????????????????????# | | ???????????????????????????# """ | | ???????????????????????????# ########## """ | | ???????????????????????????# #????????# """ | | ???????????????????????????# #????????# | | ?????????????????????####### #????????# | | ?????????????????????# # #????????# | | ?????????????????????# # #????????#!!! | | ?????????????????????# # #????????#!!! | | ?????????????????????# # #????????#!! ! | | ?????????????????????# # #????????# | | ?????????????????????# # #????????# | | ?????????????????????# # #????????# | | ?????????????????????# # #????????? ]]? | | ????????????########## # #????????????????? | | ??????????? ! ! !## # #????????????????? | | ????????!!! ## # #????????????????? | | ???????#!! """ #? # #????????????????? | | ???????# """ ####+### ######+??????????? | | ???????# """ # ???? | | ????????? """ + ???? | | ????????? """ # ???? | | ???????? "S """ # =% ????? | | ???????? """ """ ####+################# ????? | | ????????? "" """ # =[@ #???????????????????? | | ?????????? ps =%| #???????????????????? | | ?????????? !# #???????????????????? | | ???????????########## #???????????????????? | | ????????????????????# #???????????????????? | | ????????????????????# #???????????????????? | | ????????????????????# #???????????????????? | | ????????????????????# #???????????????????? | | ????????????????????# #???????????????????? | | ????????????????????##########???????????????????? | | ?????????????????????????????????????????????????? | | ?????????????????????????????????????????????????? | | ?????????????????????????????????????????????????? | | ?????????????????????????????????????????????????? | | ?????????????????????????????????????????????????? | | ?????????????????????????????????????????????????? | | ?????????????????????????????????????????????????? | | ?????????????????????????????????????????????????? | | ?????????????????????????????????????????????????? | | ?????????????????????????????????????????????????? | | ?????????????????????????????????????????????????? | | ?????????????????????????????????????????????????? | | ?????????????????????????????????????????????????? | | ?????????????????????????????????????????????????? | | ?????????????????????????????????????????????????? | +----------------------------------------------------+ Best States ------------- Heat Dissipation 89 Coolant Potential 80 Energy Generation 45 Energy Capacity 1100 Matter Stores 300 Matter Capacity 300 Sight Range 16 Robot Scan Range 20 Terrain Scan Range 14 Terrain Scan Density 10 Armor Coverage 1200 Resistance: TH 30 Resistance: EM 30 Utility Shielding 33 Weapon Cycling 25 Evasion (%) 55 Armor Integrity Analysis 30 Recoil Reduction 6 Energy Filtering 50 Kinecelleration 40 Offensive Hacking 10 Item Schematics ----------------- Energy Filter | -7/Zion | Archive Flexi-carbon Leg | -7/Zion | Archive Hvy. Battle Rifle | -7/Zion | Archive Adv. Heat Sink | -7/Zion | Archive Transmission Jammer | -7/Zion | Archive Arc Thrower | -7/Zion | Archive Mak. Leg | -7/Zion | Archive Imp. Remote Datajack | -7/Zion | Archive Imp. Transmission Jammer | -7/Zion | Archive Weapon Cycler | -7/Zion | Archive Proton Cannon | -7/Zion | Archive Mak. Power Source | -7/Zion | Archive Cloaking Device | -7/Zion | Archive Mak. Cloaking Device | -7/Zion | Archive Arc Projector | -7/Zion | Archive Lrn. Phase Cannon | -7/Zion | Archive Combat Drone Bay | -6/Data Miner | Free Lgt. Regenerative Plating | -6/Data Miner | Free Cld. Gravmag System | -6/Data Miner | Free Prc. Energy Filter | -6/Data Miner | Free Imp. KE Penetrator | -6/Data Miner | Free Impulse Thruster | -6/Data Miner | Free Imp. Force Field | -6/Data Miner | Free Adv. Datajack | -6/Data Miner | Free Imp. Recalibrator | -6/Data Miner | Free Point Defense Array | -6/Data Miner | Free Biometal Leg | -6/Data Miner | Free Robot Schematics ------------------ B-36 Bruiser | -7/Factory | Hacked G-47 Trooper | -7/Zion | Archive R-06 Scavenger | -7/Zion | Archive B-48 Gladiator | -7/Zion | Archive E-15 Imp | -6/Data Miner | Free M-22 Extractor | -6/Data Miner | Free S-27 Virus | -6/Data Miner | Free B-60 Warrior | -6/Data Miner | Free G-50 Soldier | -6/Data Miner | Free Fabricated ------------ Nothing Alien Tech Used ----------------- None Achievements -------------- Brute Force Generalissimo Challenges ------------ None Game ------ Seed ShadeHellfireClaws Manual? 0 Play Time 04:20:54 Cumulative 61.4 hours Start 2024.03.03 @ 12:16:17 End 2024.03.08 @ 01:30:03 Sessions 9 Manual Loads 0 Difficulty Rogue Special Mode None Game No. 40 Rogue 40 Adventurer 0 Explorer 0 Win Type - Total 2 Types 1/0/0/1/0/0/0/0/0 Lore% 48 Gallery% 51 Achievement% 44 Wizard Run 0 Options --------- Layout 1 ASCII 0 Keyboard 0 Movement Numpad Keybinds 0 Fullscreen 1 Font 20/SmallcapsGlow Map View 50x35 Zoom Use 0% Tactical HUD 1 Map Filters NONE Filters NONE Steam 1 RUN: 8ba609dd-aeae-4444-ae6e-9eb131553f18